[Event "Titled Tuesday Blitz June 29 2021"]
[White "Yurovskykh_Alexander"]
[Black "Beca95"]
[WhiteElo "2574"]
[BlackElo "2855"]
[Result "1-0"]
[Round "02"]
[TimeControl "180+1"]
[Date "2021.06.29"]
[WhiteClock "0:00:21"]
[BlackClock "0:00:07"]

1. d4 {[%clk 0:03:00]}  Nf6 {[%clk 0:02:59]} 2. Nf3 {[%clk 0:02:59]}  c5 {[%clk 0:02:59]} 3. c3 {[%clk 0:02:58]}  e6 {[%clk 0:02:57]} 4. Bf4 {[%clk 0:02:57]}  Qb6 {[%clk 0:02:48]} 5. Qb3 {[%clk 0:02:55]}  Qxb3 {[%clk 0:02:48]} 6. axb3 {[%clk 0:02:55]}  cxd4 {[%clk 0:02:48]} 7. Nxd4 {[%clk 0:02:56]}  d6 {[%clk 0:02:47]} 8. Nb5 {[%clk 0:02:52]}  Kd7 {[%clk 0:02:35]} 9. g3 {[%clk 0:02:52]}  Nc6 {[%clk 0:02:31]} 10. Bg2 {[%clk 0:02:51]}  h6 {[%clk 0:02:24]} 11. O-O {[%clk 0:02:51]}  g5 {[%clk 0:02:23]} 12. Be3 {[%clk 0:02:39]}  a6 {[%clk 0:02:23]} 13. N5a3 {[%clk 0:02:37]}  d5 {[%clk 0:02:21]} 14. Rd1 {[%clk 0:02:37]}  Bd6 {[%clk 0:02:09]} 15. c4 {[%clk 0:02:33]}  Ke7 {[%clk 0:02:07]} 16. Nc3 {[%clk 0:02:31]}  Nb4 {[%clk 0:01:48]} 17. cxd5 {[%clk 0:02:26]}  exd5 {[%clk 0:01:48]} 18. Nxd5+ {[%clk 0:02:25]}  Nfxd5 {[%clk 0:01:47]} 19. Bxd5 {[%clk 0:02:26]}  Nxd5 {[%clk 0:01:47]} 20. Rxd5 {[%clk 0:02:27]}  Be6 {[%clk 0:01:47]} 21. Rd3 {[%clk 0:02:26]}  Rac8 {[%clk 0:01:46]} 22. Rad1 {[%clk 0:02:20]}  Rhd8 {[%clk 0:01:34]} 23. Bb6 {[%clk 0:02:09]}  Rd7 {[%clk 0:01:33]} 24. Nc4 {[%clk 0:01:45]}  Bxc4 {[%clk 0:01:32]} 25. bxc4 {[%clk 0:01:46]}  Rxc4 {[%clk 0:01:31]} 26. b3 {[%clk 0:01:42]}  Rc6 {[%clk 0:01:28]} 27. Bd4 {[%clk 0:01:37]}  f6 {[%clk 0:01:10]} 28. g4 {[%clk 0:01:33]}  Kf7 {[%clk 0:01:08]} 29. Ba1 {[%clk 0:01:25]}  Ke6 {[%clk 0:01:08]} 30. Kg2 {[%clk 0:01:14]}  b5 {[%clk 0:01:05]} 31. Re3+ {[%clk 0:01:14]}  Kf7 {[%clk 0:01:04]} 32. Rf3 {[%clk 0:01:15]}  Rc2 {[%clk 0:00:23]} 33. Rxf6+ {[%clk 0:01:10]}  Ke7 {[%clk 0:00:24]} 34. Rxh6 {[%clk 0:01:02]}  Rxe2 {[%clk 0:00:24]} 35. Bf6+ {[%clk 0:00:48]}  Ke8 {[%clk 0:00:24]} 36. Rh8+ {[%clk 0:00:45]}  Kf7 {[%clk 0:00:23]} 37. Rh7+ {[%clk 0:00:45]}  Ke6 {[%clk 0:00:24]} 38. Rxd7 {[%clk 0:00:45]}  Kxd7 {[%clk 0:00:24]} 39. Bxg5 {[%clk 0:00:46]}  Ke6 {[%clk 0:00:24]} 40. Rd2 {[%clk 0:00:38]}  Re4 {[%clk 0:00:21]} 41. h3 {[%clk 0:00:38]}  Rb4 {[%clk 0:00:20]} 42. Rd3 {[%clk 0:00:38]}  Be5 {[%clk 0:00:14]} 43. Kf3 {[%clk 0:00:29]}  Rd4 {[%clk 0:00:09]} 44. Rxd4 {[%clk 0:00:28]}  Bxd4 {[%clk 0:00:10]} 45. Be3 {[%clk 0:00:27]}  Bc3 {[%clk 0:00:09]} 46. Ke4 {[%clk 0:00:27]}  a5 {[%clk 0:00:09]} 47. Kd3 {[%clk 0:00:24]}  Bf6 {[%clk 0:00:08]} 48. f4 {[%clk 0:00:23]}  a4 {[%clk 0:00:08]} 49. bxa4 {[%clk 0:00:23]}  bxa4 {[%clk 0:00:09]} 50. Bd4 {[%clk 0:00:21]}  Be7 {[%clk 0:00:09]} 51. Kc4 {[%clk 0:00:21]}  a3 {[%clk 0:00:08]} 52. f5+ {[%clk 0:00:21]}  Kf7 {[%clk 0:00:08]} 53. Kb3 {[%clk 0:00:21]}  Bd6 {[%clk 0:00:07]} 54. g5 {[%clk 0:00:21]}  Be7 {[%clk 0:00:07]} 55. g6+ {[%clk 0:00:22]}  Kg8 {[%clk 0:00:07]} 56. f6 {[%clk 0:00:21]} 1-0


[Site "https://www.chess.com"]

[Event "Titled Tuesday Blitz June 29 2021"]
[White "arminmusovic"]
[Black "Alexander_Donchenko"]
[WhiteElo "2547"]
[BlackElo "2833"]
[Result "0-1"]
[Round "02"]
[TimeControl "180+1"]
[Date "2021.06.29"]
[WhiteClock "0:00:40"]
[BlackClock "0:00:43"]

1. a3 {[%clk 0:03:00]}  Nf6 {[%clk 0:02:58]} 2. Nc3 {[%clk 0:03:01]}  d5 {[%clk 0:02:57]} 3. d3 {[%clk 0:03:00]}  e5 {[%clk 0:02:56]} 4. Bg5 {[%clk 0:03:00]}  Be7 {[%clk 0:02:55]} 5. e4 {[%clk 0:02:52]}  c6 {[%clk 0:02:46]} 6. h3 {[%clk 0:02:48]}  h6 {[%clk 0:02:44]} 7. Bd2 {[%clk 0:02:45]}  Be6 {[%clk 0:02:38]} 8. Nf3 {[%clk 0:02:45]}  Nbd7 {[%clk 0:02:38]} 9. Be2 {[%clk 0:02:45]}  O-O {[%clk 0:02:38]} 10. O-O {[%clk 0:02:45]}  Qc7 {[%clk 0:02:38]} 11. Nh2 {[%clk 0:02:44]}  Rad8 {[%clk 0:02:35]} 12. Qe1 {[%clk 0:02:42]}  dxe4 {[%clk 0:02:33]} 13. Nxe4 {[%clk 0:02:37]}  Nxe4 {[%clk 0:02:32]} 14. dxe4 {[%clk 0:02:37]}  Nf6 {[%clk 0:02:32]} 15. Bf3 {[%clk 0:02:30]}  Bc4 {[%clk 0:02:30]} 16. Be2 {[%clk 0:02:29]}  Nxe4 {[%clk 0:02:22]} 17. Bxh6 {[%clk 0:02:21]}  gxh6 {[%clk 0:02:16]} 18. Bxc4 {[%clk 0:02:20]}  Nd2 {[%clk 0:02:17]} 19. Qe2 {[%clk 0:02:07]}  Nxf1 {[%clk 0:02:03]} 20. Qh5 {[%clk 0:02:05]}  Qd6 {[%clk 0:01:50]} 21. Rxf1 {[%clk 0:01:58]}  Kg7 {[%clk 0:01:42]} 22. Ng4 {[%clk 0:01:54]}  f5 {[%clk 0:01:39]} 23. Ne3 {[%clk 0:01:50]}  Qg6 {[%clk 0:01:37]} 24. Qf3 {[%clk 0:01:38]}  Bc5 {[%clk 0:01:35]} 25. Nd1 {[%clk 0:01:25]}  e4 {[%clk 0:01:32]} 26. Qc3+ {[%clk 0:01:20]}  Bd4 {[%clk 0:01:31]} 27. Qb3 {[%clk 0:01:20]}  b5 {[%clk 0:01:29]} 28. Be2 {[%clk 0:01:20]}  f4 {[%clk 0:01:25]} 29. Kh1 {[%clk 0:01:16]}  Kh8 {[%clk 0:01:20]} 30. f3 {[%clk 0:01:11]}  Rg8 {[%clk 0:01:18]} 31. g4 {[%clk 0:01:06]}  fxg3 {[%clk 0:01:17]} 32. Kg2 {[%clk 0:01:06]}  exf3+ {[%clk 0:01:03]} 33. Bxf3 {[%clk 0:01:05]}  Rgf8 {[%clk 0:00:58]} 34. a4 {[%clk 0:01:04]}  Bg7 {[%clk 0:00:54]} 35. Qe3 {[%clk 0:01:00]}  Qg5 {[%clk 0:00:47]} 36. Bxc6 {[%clk 0:00:43]}  Rd2+ {[%clk 0:00:44]} 37. Kh1 {[%clk 0:00:40]}  Rxf1+ {[%clk 0:00:43]} 0-1


[Site "https://www.chess.com"]

[Event "Titled Tuesday Blitz June 29 2021"]
[White "bazar-wokzal"]
[Black "dretch"]
[WhiteElo "2543"]
[BlackElo "2821"]
[Result "0-1"]
[Round "02"]
[TimeControl "180+1"]
[Date "2021.06.29"]
[WhiteClock "0:00:10"]
[BlackClock "0:00:09"]

1. e4 {[%clk 0:03:00]}  e6 {[%clk 0:02:58]} 2. d4 {[%clk 0:03:00]}  d5 {[%clk 0:02:59]} 3. exd5 {[%clk 0:03:01]}  exd5 {[%clk 0:02:58]} 4. Nf3 {[%clk 0:03:02]}  Bd6 {[%clk 0:02:57]} 5. c4 {[%clk 0:03:02]}  c6 {[%clk 0:02:52]} 6. Bd3 {[%clk 0:03:01]}  Ne7 {[%clk 0:02:46]} 7. O-O {[%clk 0:03:00]}  O-O {[%clk 0:02:45]} 8. Re1 {[%clk 0:03:00]}  dxc4 {[%clk 0:02:37]} 9. Bxc4 {[%clk 0:03:00]}  Nd7 {[%clk 0:02:35]} 10. Nc3 {[%clk 0:03:00]}  Nb6 {[%clk 0:02:35]} 11. Bb3 {[%clk 0:03:00]}  Ned5 {[%clk 0:02:34]} 12. Ne5 {[%clk 0:02:56]}  f6 {[%clk 0:02:23]} 13. Nd3 {[%clk 0:02:48]}  Kh8 {[%clk 0:02:19]} 14. Qf3 {[%clk 0:02:46]}  Bc7 {[%clk 0:02:01]} 15. Nxd5 {[%clk 0:02:38]}  Nxd5 {[%clk 0:02:01]} 16. Bxd5 {[%clk 0:02:37]}  cxd5 {[%clk 0:01:56]} 17. Bf4 {[%clk 0:02:37]}  Ba5 {[%clk 0:01:48]} 18. b4 {[%clk 0:02:34]}  Bb6 {[%clk 0:01:46]} 19. Nc5 {[%clk 0:02:33]}  Bxc5 {[%clk 0:00:41]} 20. dxc5 {[%clk 0:02:29]}  Bf5 {[%clk 0:00:40]} 21. Rad1 {[%clk 0:02:23]}  Be4 {[%clk 0:00:33]} 22. Qc3 {[%clk 0:02:19]}  Re8 {[%clk 0:00:21]} 23. b5 {[%clk 0:02:11]}  Rc8 {[%clk 0:00:16]} 24. c6 {[%clk 0:01:55]}  Qb6 {[%clk 0:00:15]} 25. c7 {[%clk 0:01:47]}  Qxb5 {[%clk 0:00:15]} 26. h4 {[%clk 0:01:34]}  h6 {[%clk 0:00:13]} 27. Bxh6 {[%clk 0:01:21]}  gxh6 {[%clk 0:00:08]} 28. Qxf6+ {[%clk 0:01:20]}  Kg8 {[%clk 0:00:08]} 29. Rc1 {[%clk 0:01:11]}  Qd7 {[%clk 0:00:07]} 30. Qxh6 {[%clk 0:01:06]}  Re6 {[%clk 0:00:07]} 31. Qf4 {[%clk 0:01:02]}  Qg7 {[%clk 0:00:06]} 32. f3 {[%clk 0:00:58]}  Rf6 {[%clk 0:00:05]} 33. Qg5 {[%clk 0:00:38]}  Rg6 {[%clk 0:00:05]} 34. fxe4 {[%clk 0:00:34]}  Rxg5 {[%clk 0:00:05]} 35. hxg5 {[%clk 0:00:34]}  Qd4+ {[%clk 0:00:06]} 36. Kh2 {[%clk 0:00:33]}  Kg7 {[%clk 0:00:07]} 37. exd5 {[%clk 0:00:31]}  Rh8+ {[%clk 0:00:06]} 38. Kg3 {[%clk 0:00:31]}  Qd3+ {[%clk 0:00:07]} 39. Kg4 {[%clk 0:00:29]}  Qd4+ {[%clk 0:00:06]} 40. Kg3 {[%clk 0:00:29]}  Qh4+ {[%clk 0:00:07]} 41. Kf3 {[%clk 0:00:29]}  Rf8+ {[%clk 0:00:08]} 42. Ke3 {[%clk 0:00:29]}  Qf4+ {[%clk 0:00:07]} 43. Kd3 {[%clk 0:00:30]}  Qf5+ {[%clk 0:00:07]} 44. Kd4 {[%clk 0:00:27]}  Qf4+ {[%clk 0:00:07]} 45. Kd3 {[%clk 0:00:26]}  Qd6 {[%clk 0:00:07]} 46. c8=Q {[%clk 0:00:20]}  Qxd5+ {[%clk 0:00:06]} 47. Ke3 {[%clk 0:00:17]}  Rxc8 {[%clk 0:00:06]} 48. Rxc8 {[%clk 0:00:16]}  Qe6+ {[%clk 0:00:07]} 49. Kf4 {[%clk 0:00:16]}  Qxc8 {[%clk 0:00:08]} 50. Re7+ {[%clk 0:00:17]}  Kg6 {[%clk 0:00:06]} 51. g4 {[%clk 0:00:14]}  Qc4+ {[%clk 0:00:07]} 52. Re4 {[%clk 0:00:15]}  Qc7+ {[%clk 0:00:06]} 53. Re5 {[%clk 0:00:12]}  Qd6 {[%clk 0:00:06]} 54. Ke4 {[%clk 0:00:12]}  a6 {[%clk 0:00:06]} 55. a4 {[%clk 0:00:12]}  Qc6+ {[%clk 0:00:06]} 56. Kf4 {[%clk 0:00:12]}  Qxa4+ {[%clk 0:00:07]} 57. Re4 {[%clk 0:00:13]}  Qc6 {[%clk 0:00:07]} 58. Re5 {[%clk 0:00:09]}  Qd6 {[%clk 0:00:07]} 59. Ke4 {[%clk 0:00:09]}  Qxe5+ {[%clk 0:00:08]} 60. Kxe5 {[%clk 0:00:10]}  Kxg5 {[%clk 0:00:09]} 0-1


[Site "https://www.chess.com"]

[Event "Titled Tuesday Blitz June 29 2021"]
[White "louis198"]
[Black "GigaQuparadze"]
[WhiteElo "2589"]
[BlackElo "2951"]
[Result "0-1"]
[Round "02"]
[TimeControl "180+1"]
[Date "2021.06.29"]
[WhiteClock "0:00:40"]
[BlackClock "0:01:57"]

1. d4 {[%clk 0:02:57]}  Nf6 {[%clk 0:02:59]} 2. c4 {[%clk 0:02:57]}  e6 {[%clk 0:02:59]} 3. Nc3 {[%clk 0:02:57]}  Bb4 {[%clk 0:02:58]} 4. Qb3 {[%clk 0:02:58]}  c5 {[%clk 0:02:54]} 5. e3 {[%clk 0:02:58]}  Nc6 {[%clk 0:02:53]} 6. Bd3 {[%clk 0:02:57]}  cxd4 {[%clk 0:02:50]} 7. exd4 {[%clk 0:02:56]}  O-O {[%clk 0:02:49]} 8. Ne2 {[%clk 0:02:57]}  d5 {[%clk 0:02:49]} 9. O-O {[%clk 0:02:52]}  dxc4 {[%clk 0:02:49]} 10. Bxc4 {[%clk 0:02:52]}  Be7 {[%clk 0:02:49]} 11. Rd1 {[%clk 0:02:52]}  Na5 {[%clk 0:02:49]} 12. Qa4 {[%clk 0:02:50]}  a6 {[%clk 0:02:41]} 13. Bd3 {[%clk 0:02:50]}  b5 {[%clk 0:02:41]} 14. Qc2 {[%clk 0:02:50]}  Bb7 {[%clk 0:02:40]} 15. a3 {[%clk 0:02:43]}  Rc8 {[%clk 0:02:39]} 16. Bg5 {[%clk 0:02:36]}  h6 {[%clk 0:02:38]} 17. Bh4 {[%clk 0:02:36]}  Nd5 {[%clk 0:02:31]} 18. Bxe7 {[%clk 0:02:36]}  Qxe7 {[%clk 0:02:32]} 19. Ng3 {[%clk 0:02:20]}  Nxc3 {[%clk 0:02:27]} 20. bxc3 {[%clk 0:02:20]}  Rc7 {[%clk 0:02:27]} 21. Qb2 {[%clk 0:02:18]}  Rfc8 {[%clk 0:02:26]} 22. Rac1 {[%clk 0:02:03]}  Nc4 {[%clk 0:02:25]} 23. Bxc4 {[%clk 0:02:02]}  Rxc4 {[%clk 0:02:25]} 24. f3 {[%clk 0:02:01]}  Ra4 {[%clk 0:02:24]} 25. Ra1 {[%clk 0:02:00]}  Qc7 {[%clk 0:02:24]} 26. Ne2 {[%clk 0:01:56]}  Bd5 {[%clk 0:02:24]} 27. Rd2 {[%clk 0:01:55]}  Qa5 {[%clk 0:02:19]} 28. h3 {[%clk 0:01:44]}  Qc7 {[%clk 0:02:18]} 29. Qc1 {[%clk 0:01:34]}  Bc4 {[%clk 0:02:18]} 30. Qe1 {[%clk 0:00:49]}  Bxe2 {[%clk 0:02:16]} 31. Qxe2 {[%clk 0:00:48]}  Qxc3 {[%clk 0:02:15]} 32. Raa2 {[%clk 0:00:48]}  Rxa3 {[%clk 0:02:04]} 33. Rac2 {[%clk 0:00:40]}  Qa1+ {[%clk 0:02:00]} 34. Kh2 {[%clk 0:00:40]}  Rxc2 {[%clk 0:02:00]} 35. Rxc2 {[%clk 0:00:41]}  Qxd4 {[%clk 0:01:59]} 36. Rc8+ {[%clk 0:00:40]}  Kh7 {[%clk 0:01:59]} 37. Qc2+ {[%clk 0:00:40]}  f5 {[%clk 0:01:57]} 0-1


[Site "https://www.chess.com"]

[Event "Titled Tuesday Blitz June 29 2021"]
[White "nrvisakh"]
[Black "RedbaronCanada"]
[WhiteElo "2855"]
[BlackElo "2558"]
[Result "1-0"]
[Round "02"]
[TimeControl "180+1"]
[Date "2021.06.29"]
[WhiteClock "0:00:09"]
[BlackClock "0:00:04"]

1. e4 {[%clk 0:03:00]}  c6 {[%clk 0:02:57]} 2. Nf3 {[%clk 0:03:00]}  d5 {[%clk 0:02:57]} 3. d3 {[%clk 0:03:00]}  dxe4 {[%clk 0:02:57]} 4. dxe4 {[%clk 0:03:00]}  Qxd1+ {[%clk 0:02:58]} 5. Kxd1 {[%clk 0:03:01]}  Bg4 {[%clk 0:02:55]} 6. Be2 {[%clk 0:02:58]}  Nd7 {[%clk 0:02:51]} 7. c3 {[%clk 0:02:56]}  e5 {[%clk 0:02:40]} 8. Be3 {[%clk 0:02:55]}  f6 {[%clk 0:02:28]} 9. Nbd2 {[%clk 0:02:54]}  Bc5 {[%clk 0:02:24]} 10. Bxc5 {[%clk 0:02:48]}  Nxc5 {[%clk 0:02:25]} 11. Ne1 {[%clk 0:02:49]}  Bxe2+ {[%clk 0:02:21]} 12. Kxe2 {[%clk 0:02:49]}  O-O-O {[%clk 0:02:19]} 13. f3 {[%clk 0:02:47]}  Ne7 {[%clk 0:02:18]} 14. Nb3 {[%clk 0:02:46]}  Ne6 {[%clk 0:02:12]} 15. Nd3 {[%clk 0:02:45]}  b6 {[%clk 0:02:11]} 16. a4 {[%clk 0:02:40]}  a5 {[%clk 0:02:06]} 17. Nd2 {[%clk 0:02:38]}  Kc7 {[%clk 0:01:57]} 18. Nc4 {[%clk 0:02:37]}  Ng6 {[%clk 0:01:51]} 19. g3 {[%clk 0:02:35]}  Ra8 {[%clk 0:01:47]} 20. Rhf1 {[%clk 0:02:25]}  Rhd8 {[%clk 0:01:42]} 21. f4 {[%clk 0:02:24]}  exf4 {[%clk 0:01:43]} 22. gxf4 {[%clk 0:02:24]}  Ne7 {[%clk 0:01:27]} 23. f5 {[%clk 0:02:12]}  Ng5 {[%clk 0:01:24]} 24. Nf2 {[%clk 0:02:12]}  Re8 {[%clk 0:01:19]} 25. h4 {[%clk 0:02:10]}  Nf7 {[%clk 0:01:09]} 26. Kf3 {[%clk 0:01:54]}  g6 {[%clk 0:01:06]} 27. Ng4 {[%clk 0:01:49]}  gxf5 {[%clk 0:00:58]} 28. Nxf6 {[%clk 0:01:49]}  fxe4+ {[%clk 0:00:50]} 29. Kxe4 {[%clk 0:01:48]}  Rh8 {[%clk 0:00:44]} 30. Rad1 {[%clk 0:01:35]}  Rad8 {[%clk 0:00:32]} 31. Rxd8 {[%clk 0:01:34]}  Nxd8 {[%clk 0:00:32]} 32. Rd1 {[%clk 0:01:31]}  Nd5 {[%clk 0:00:26]} 33. Nxd5+ {[%clk 0:01:31]}  cxd5+ {[%clk 0:00:26]} 34. Rxd5 {[%clk 0:01:31]}  Ne6 {[%clk 0:00:23]} 35. b4 {[%clk 0:01:21]}  axb4 {[%clk 0:00:22]} 36. cxb4 {[%clk 0:01:21]}  Ra8 {[%clk 0:00:20]} 37. a5 {[%clk 0:01:15]}  bxa5 {[%clk 0:00:21]} 38. bxa5 {[%clk 0:01:15]}  Re8 {[%clk 0:00:21]} 39. Kf3 {[%clk 0:01:11]}  Rf8+ {[%clk 0:00:20]} 40. Ke3 {[%clk 0:01:08]}  Nf4 {[%clk 0:00:18]} 41. Rc5+ {[%clk 0:01:05]}  Kb8 {[%clk 0:00:17]} 42. Ke4 {[%clk 0:01:03]}  Ng2 {[%clk 0:00:16]} 43. h5 {[%clk 0:00:56]}  h6 {[%clk 0:00:13]} 44. Ne5 {[%clk 0:00:47]}  Rf4+ {[%clk 0:00:10]} 45. Kd5 {[%clk 0:00:47]}  Rf5 {[%clk 0:00:08]} 46. Kc6 {[%clk 0:00:47]}  Ka7 {[%clk 0:00:08]} 47. Kb5 {[%clk 0:00:44]}  Ka8 {[%clk 0:00:06]} 48. a6 {[%clk 0:00:37]}  Ne3 {[%clk 0:00:05]} 49. Rc8+ {[%clk 0:00:16]}  Ka7 {[%clk 0:00:05]} 50. Rc7+ {[%clk 0:00:16]}  Kb8 {[%clk 0:00:04]} 51. Rc5 {[%clk 0:00:10]}  Ka7 {[%clk 0:00:01]} 52. Nc6+ {[%clk 0:00:09]}  Ka8 {[%clk 0:00:01]} 53. Rxf5 {[%clk 0:00:09]}  Nxf5 {[%clk 0:00:02]} 54. Kb6 {[%clk 0:00:07]}  Ng3 {[%clk 0:00:03]} 55. Nb4 {[%clk 0:00:07]}  Nxh5 {[%clk 0:00:02]} 56. Nd5 {[%clk 0:00:08]}  Ng7 {[%clk 0:00:01]} 57. Nc7+ {[%clk 0:00:08]}  Kb8 {[%clk 0:00:02]} 58. a7+ {[%clk 0:00:09]}  Kc8 {[%clk 0:00:03]} 59. a8=Q+ {[%clk 0:00:09]}  Kd7 {[%clk 0:00:04]} 60. Qd5+ {[%clk 0:00:09]} 1-0


[Site "https://www.chess.com"]

[Event "Titled Tuesday Blitz June 29 2021"]
[White "switlave"]
[Black "ChessLover0108"]
[WhiteElo "2558"]
[BlackElo "2848"]
[Result "0-1"]
[Round "02"]
[TimeControl "180+1"]
[Date "2021.06.29"]
[WhiteClock "0:00:34"]
[BlackClock "0:01:45"]

1. d4 {[%clk 0:03:00]}  g6 {[%clk 0:02:59]} 2. Bf4 {[%clk 0:03:01]}  Bg7 {[%clk 0:02:59]} 3. e3 {[%clk 0:03:01]}  c5 {[%clk 0:02:59]} 4. c3 {[%clk 0:03:01]}  cxd4 {[%clk 0:02:58]} 5. exd4 {[%clk 0:03:01]}  d6 {[%clk 0:02:59]} 6. Nf3 {[%clk 0:03:00]}  Nc6 {[%clk 0:03:00]} 7. Nbd2 {[%clk 0:02:54]}  e5 {[%clk 0:02:58]} 8. Bg3 {[%clk 0:02:49]}  Nge7 {[%clk 0:02:48]} 9. dxe5 {[%clk 0:02:31]}  dxe5 {[%clk 0:02:46]} 10. Nc4 {[%clk 0:02:32]}  Qxd1+ {[%clk 0:02:29]} 11. Rxd1 {[%clk 0:02:31]}  Nf5 {[%clk 0:02:25]} 12. Nfxe5 {[%clk 0:02:08]}  O-O {[%clk 0:02:18]} 13. Nxc6 {[%clk 0:01:46]}  bxc6 {[%clk 0:02:19]} 14. Nd6 {[%clk 0:01:23]}  Nxd6 {[%clk 0:02:11]} 15. Bxd6 {[%clk 0:01:20]}  Re8+ {[%clk 0:02:12]} 16. Kd2 {[%clk 0:00:55]}  Rd8 {[%clk 0:01:57]} 17. Kc1 {[%clk 0:00:48]}  Bh6+ {[%clk 0:01:49]} 18. Kc2 {[%clk 0:00:34]}  Bf5+ {[%clk 0:01:49]} 19. Kb3 {[%clk 0:00:34]}  Bf8 {[%clk 0:01:45]} 0-1


[Site "https://www.chess.com"]

[Event "Titled Tuesday Blitz June 29 2021"]
[White "Alexander_Donchenko"]
[Black "elcandado"]
[WhiteElo "2836"]
[BlackElo "2607"]
[Result "1-0"]
[Round "03"]
[TimeControl "180+1"]
[Date "2021.06.29"]
[WhiteClock "0:00:44"]
[BlackClock "0:00:04"]

1. Nf3 {[%clk 0:03:00]}  Nf6 {[%clk 0:02:59]} 2. g3 {[%clk 0:03:01]}  d5 {[%clk 0:02:58]} 3. Bg2 {[%clk 0:03:01]}  Bf5 {[%clk 0:02:55]} 4. O-O {[%clk 0:03:00]}  e6 {[%clk 0:02:55]} 5. Nh4 {[%clk 0:02:59]}  Bg4 {[%clk 0:02:53]} 6. h3 {[%clk 0:02:59]}  Bh5 {[%clk 0:02:53]} 7. Qe1 {[%clk 0:02:59]}  Be7 {[%clk 0:02:45]} 8. d3 {[%clk 0:02:58]}  O-O {[%clk 0:02:30]} 9. e4 {[%clk 0:02:58]}  Nc6 {[%clk 0:02:25]} 10. f4 {[%clk 0:02:46]}  Nd4 {[%clk 0:01:56]} 11. Rf2 {[%clk 0:02:39]}  Ne8 {[%clk 0:01:47]} 12. Nf3 {[%clk 0:02:28]}  Bxf3 {[%clk 0:01:37]} 13. Bxf3 {[%clk 0:02:29]}  Bc5 {[%clk 0:01:36]} 14. Be3 {[%clk 0:02:23]}  Nxf3+ {[%clk 0:01:34]} 15. Rxf3 {[%clk 0:02:24]}  Bxe3+ {[%clk 0:01:33]} 16. Rxe3 {[%clk 0:02:15]}  dxe4 {[%clk 0:01:27]} 17. dxe4 {[%clk 0:02:15]}  Qd4 {[%clk 0:01:19]} 18. c3 {[%clk 0:02:10]}  Qb6 {[%clk 0:01:19]} 19. Qf2 {[%clk 0:02:10]}  Nd6 {[%clk 0:01:15]} 20. Na3 {[%clk 0:02:10]}  Rfd8 {[%clk 0:01:12]} 21. Rd1 {[%clk 0:02:07]}  f5 {[%clk 0:00:55]} 22. exf5 {[%clk 0:01:58]}  exf5 {[%clk 0:00:56]} 23. Red3 {[%clk 0:01:53]}  Re8 {[%clk 0:00:51]} 24. Qxb6 {[%clk 0:01:46]}  axb6 {[%clk 0:00:52]} 25. Kf2 {[%clk 0:01:43]}  Re4 {[%clk 0:00:50]} 26. Re1 {[%clk 0:01:40]}  Rae8 {[%clk 0:00:45]} 27. Rxe4 {[%clk 0:01:31]}  Rxe4 {[%clk 0:00:46]} 28. Nc2 {[%clk 0:01:29]}  Kf7 {[%clk 0:00:35]} 29. Ne3 {[%clk 0:01:26]}  Ke6 {[%clk 0:00:27]} 30. Kf3 {[%clk 0:01:25]}  c6 {[%clk 0:00:20]} 31. Rxd6+ {[%clk 0:01:10]}  Kxd6 {[%clk 0:00:21]} 32. Nxf5+ {[%clk 0:01:10]}  Kd5 {[%clk 0:00:21]} 33. Ne3+ {[%clk 0:01:11]}  Rxe3+ {[%clk 0:00:20]} 34. Kxe3 {[%clk 0:01:12]}  b5 {[%clk 0:00:19]} 35. Kd3 {[%clk 0:01:06]}  c5 {[%clk 0:00:19]} 36. b3 {[%clk 0:01:04]}  c4+ {[%clk 0:00:17]} 37. Ke3 {[%clk 0:01:04]}  g6 {[%clk 0:00:15]} 38. b4 {[%clk 0:01:02]}  b6 {[%clk 0:00:14]} 39. g4 {[%clk 0:01:02]}  h6 {[%clk 0:00:15]} 40. Kf3 {[%clk 0:00:59]}  g5 {[%clk 0:00:15]} 41. f5 {[%clk 0:00:48]}  Ke5 {[%clk 0:00:15]} 42. Ke3 {[%clk 0:00:49]}  Kd5 {[%clk 0:00:15]} 43. Kd2 {[%clk 0:00:49]}  Ke5 {[%clk 0:00:15]} 44. Kc2 {[%clk 0:00:49]}  h5 {[%clk 0:00:11]} 45. Kb2 {[%clk 0:00:49]}  h4 {[%clk 0:00:11]} 46. a3 {[%clk 0:00:46]}  Kd5 {[%clk 0:00:10]} 47. a4 {[%clk 0:00:46]}  bxa4 {[%clk 0:00:10]} 48. b5 {[%clk 0:00:47]}  Kc5 {[%clk 0:00:06]} 49. Ka3 {[%clk 0:00:47]}  Kd5 {[%clk 0:00:04]} 50. Kxa4 {[%clk 0:00:47]}  Kc5 {[%clk 0:00:05]} 51. Ka3 {[%clk 0:00:47]}  Kd6 {[%clk 0:00:04]} 52. Kb4 {[%clk 0:00:44]}  Kd5 {[%clk 0:00:05]} 53. f6 {[%clk 0:00:43]}  Ke6 {[%clk 0:00:03]} 54. Kxc4 {[%clk 0:00:44]}  Kxf6 {[%clk 0:00:04]} 55. Kd5 {[%clk 0:00:44]} 1-0


[Site "https://www.chess.com"]